{"text_format":"1","workbook":"xlsx","n_sheets":3,"sheets":["Gesamtübersicht","Erweitertes SKOS-Budget","Berechnung ohne Partner_in"],"not_rendered":{"charts":0,"images":6,"macros":1,"external_links":0,"defined_names":3,"comments":0,"pivot_tables":0},"unopened":[],"bounds":{"document_bytes":16777216,"sheet_cells":100000,"rows_first":2000,"rows_last":500,"rows_between":2000,"halvings":0,"cell_chars":16384,"cell_head_chars":4096},"cells_cut":0,"cells_raw":0,"read":"whole","date_system":"1900"}

{"sheet":"Gesamtübersicht","index":0,"n_rows":43,"n_cols":47,"rows_kept":43,"cut":false,"hidden":false,"merged":[[0,35,2,37],[18,0,18,6],[17,7,17,12],[18,7,18,12],[17,17,17,23],[18,17,18,23],[18,13,18,16],[9,19,9,21],[9,24,9,33],[12,22,12,23],[12,24,12,33],[8,0,8,6],[8,17,8,23],[8,24,8,33],[8,7,8,16],[10,0,10,6],[41,0,41,11],[12,0,12,6],[12,7,12,16],[14,0,14,33],[13,0,13,6],[13,7,13,16],[18,24,18,29],[15,0,15,6],[16,0,16,6],[15,7,15,12],[16,7,16,12],[15,17,15,23],[15,24,15,29],[28,30,28,33],[17,24,17,29],[16,24,16,29],[35,0,35,33],[31,30,31,33],[11,17,11,23],[11,24,11,33],[12,17,12,18],[12,19,12,21],[16,17,16,23],[22,0,22,33],[18,30,18,33],[15,13,15,16],[16,13,16,16],[17,13,17,16],[16,30,16,33],[17,0,17,6],[27,36,27,38],[10,7,10,16],[28,36,28,38],[9,7,9,16],[9,0,9,6],[9,17,9,18],[27,40,27,42],[28,40,28,42],[0,0,2,33],[26,30,26,33],[27,30,27,33],[25,30,25,33],[24,30,24,33],[10,17,10,33],[13,17,13,33],[6,0,6,33],[7,0,7,33],[11,0,11,6],[11,7,11,16],[9,22,9,23],[15,30,15,33],[17,30,17,33],[35,35,35,42],[30,45,30,47],[31,45,31,47],[35,44,35,51],[32,36,32,38],[32,40,32,42],[33,36,33,38],[33,40,33,42]]}
["Elternbeitrag",null,null,null,null,null,null,null,null,null,null,null,null,null,null,null,null,null,null,null,null,null,null,null,null,null,null,null,null,null,null,null,null,null,null,"!!! WICHTIG !!!"]
[]
[]
[]
[null,null,null,null,null,null,null,null,null,null,null,null,null,null,null,null,null,null,null,null,null,null,null,null,null,null,null,null,null,null,null,null,null,null,null,"- Bitte zunächst die Personalien im Formular erfassen. "]
[null,null,null,null,null,null,null,null,null,null,null,null,null,null,null,null,null,null,null,null,null,null,null,null,null,null,null,null,null,null,null,null,null,null,null,"- Bezahlt ein Elternteil Alimente für das Kind in der stationären Kindesschutzmassnahmen, muss dieser keinen Elternbeitrag leisten. Für diesen Elternteil entfällt die Berechnung des Elternbeitrags. Es ist eine Kopie des Nachweises über die Alimente beizulegen."]
["Personalien",null,null,null,null,null,null,null,null,null,null,null,null,null,null,null,null,null,null,null,null,null,null,null,null,null,null,null,null,null,null,null,null,null,null,"- Bei dem Elternteil, welcher Alimente bezahlt, ist ein Häkchen zu setzen. Das Berechnungsformular wird dadurch automatisch angepasst. "]
["Eltern (Inhaber/innen der elterlichen Sorge)"]
["Name",null,null,null,null,null,null,null,null,null,null,null,null,null,null,null,null,"Vorname",null,null,null,null,null,null,null,null,null,null,null,null,null,null,null,null,null,{"$f":"Gesamtübersicht!H9&\" \"&Gesamtübersicht!Y9","v":" "},null,null,"bezahlt Alimente für das betreffende Kind"]
["Adresse",null,null,null,null,null,null,null,null,null,null,null,null,null,null,null,null,"PLZ",null,null,null,null,"Ort"]
["Zivilstand"]
["Name",null,null,null,null,null,null,null,null,null,null,null,null,null,null,null,null,"Vorname",null,null,null,null,null,null,null,null,null,null,null,null,null,null,null,null,null,{"$f":"Gesamtübersicht!H12&\" \"&Gesamtübersicht!Y12","v":" "},null,null,"bezahlt Alimente für das betreffende Kind"]
["Adresse",null,null,null,null,null,null,null,null,null,null,null,null,null,null,null,null,"PLZ",null,null,null,null,"Ort"]
["Zivilstand"]
["Kind/er / Jugendliche/r",null,null,null,null,null,null,null,null,null,null,null,null,null,null,null,null,null,null,null,null,null,null,null,null,null,null,null,null,null,null,null,null,null,null,null,null,"Minimaler Elternbeitrag Alimente 1:",false,null,null,null,"Minimaler Elternbeitrag Alimente 2:",null,false]
["Name",null,null,null,null,null,null,"Vorname",null,null,null,null,null,"Geb.Dat.",null,null,null,"Name",null,null,null,null,null,null,"Vorname",null,null,null,null,null,"Geb.Dat."]
[null,null,null,null,null,null,null,null,null,null,null,null,null,null,null,null,null,null,null,null,null,null,null,null,null,null,null,null,null,null,null,null,null,null,null,null,null,"Zusatzschritt (Eltern leben getrennt):",{"$f":"OR(SUM('Erweitertes SKOS-Budget'!AC21:AF21)<>0,SUM('Erweitertes SKOS-Budget'!AC36:AF36)<>0,SUM('Erweitertes SKOS-Budget'!AC37:AF37)<>0,SUM('Erweitertes SKOS-Budget'!BJ21:BM21)<>0,SUM('Erweitertes SKOS-Budget'!BJ36:BM36)<>0,SUM('Erweitertes SKOS-Budget'!BJ37:BM37)<>0)","v":false},null,null,null,"Zusatzschritt (Nur ein Elternteil):",null,{"$f":"AU33","v":false},{"$f":"OR(SUM('Erweitertes SKOS-Budget'!AC21:AF21)<>0,SUM('Erweitertes SKOS-Budget'!AC36:AF36)<>0,SUM('Erweitertes SKOS-Budget'!AC37:AF37)<>0)","v":false}]
[]
[]
[]
["Öffentliche Unterstützung"]
["Eltern (Inhaber/innen der elterlichen Sorge) erhalten wirtschaftliche Sozialhilfe:",null,null,null,null,null,null,null,null,null,null,null,null,null,null,null,null,null,null,null,null,null,null,null,null,null,null,null,null,null,null,null,null,null,null,"- Wird bei getrennt lebenden Eltern nur ein Elternteil öffentlich unterstützt, ist \"nein\" auszuwählen."]
["(Wird \"ja\" angekreuzt, kann kein Elternbeitrag berechnet werden. Es gilt ein minimaler Elternbeitrag von Fr. 10.00 pro Tag. Dem Formular ist eine Kopie des Leistungsentscheids bzw. der Verfügung beizulegen.)"]
[]
["Erweitertes SKOS-Budget"]
["Monatliches Einkommen",null,null,null,null,null,null,null,null,null,null,null,null,null,null,null,null,null,null,null,null,null,null,null,null,null,null,null,"Fr.",null,{"$f":"ROUND(SUM('Erweitertes SKOS-Budget'!AC30, 'Erweitertes SKOS-Budget'!BJ30),0)","v":0}]
["Monatlich laufende Verpflichtungen",null,null,null,null,null,null,null,null,null,null,null,null,null,null,null,null,null,null,null,null,null,null,null,null,null,null,null,"Fr.",null,{"$f":"ROUND(SUM('Erweitertes SKOS-Budget'!AC17, 'Erweitertes SKOS-Budget'!BJ17),0)","v":0},null,null,{"$f":"SUM(#REF!)","v":{"$error":"#REF!"}},null,"1/2 Überschuss erweitertes SKOS-Budget"]
["Überschuss erweitertes SKOS-Budget",null,null,null,null,null,null,null,null,null,null,null,null,null,null,null,null,null,null,null,null,null,null,null,null,null,null,null,"Fr.",null,{"$f":"IF(AE26-AE27<0,0,AE26-AE27)","v":0},null,null,null,null,"Elternteil:",{"$f":"Gesamtübersicht!H9&\" \"&Gesamtübersicht!Y9","v":" "},null,null,"Elternteil:",{"$f":"Gesamtübersicht!H12&\" \"&Gesamtübersicht!Y12","v":" "}]
["1/2 Überschuss erweitertes SKOS-Budget",null,null,null,null,null,null,null,null,null,null,null,null,null,null,null,null,null,null,null,null,null,null,null,null,null,null,null,"Fr.",null,{"$f":"IF(AE28/2<0,0,AE28/2)","v":0},null,null,null,null,"Fr.",{"$f":"IFERROR(ROUND(MROUND(('Erweitertes SKOS-Budget'!AC30-'Erweitertes SKOS-Budget'!AC17)/2,0.5),0),0)","v":0},null,null,"Fr.",{"$f":"IFERROR(ROUND(MROUND(('Erweitertes SKOS-Budget'!BJ30-'Erweitertes SKOS-Budget'!BJ17)/2,0.5),0),0)","v":0}]
[null,null,null,null,null,null,null,null,null,null,null,null,null,null,null,null,null,null,null,null,null,null,null,null,null,null,null,null,null,null,null,null,null,null,null,null,null,null,null,null,null,null,null,null,"Empfehlung ohne Berücksichtigung Einkommen und Vermögen Partner/in"]
[null,null,null,null,null,null,null,null,null,null,null,null,null,null,null,null,null,null,null,null,null,null,null,null,null,null,null,null,null,null,null,null,null,null,null,null,null,null,null,null,null,null,null,null,"Elternteil:",{"$f":"Gesamtübersicht!H9&\" \"&Gesamtübersicht!Y9","v":" "}]
["Elternbeitrag",null,null,null,null,null,null,null,null,null,null,null,null,null,null,null,null,null,null,null,null,null,null,null,null,null,null,null,"Fr.",null,0,null,null,null,null,"Empfehlung ohne Berücksichtigung Einkommen und Vermögen Partner/in",null,null,null,null,null,null,null,null,"Fr.",{"$f":"IFERROR(IF(AL43=\"i.O.\",AE29,ROUND(AL37+AL42,0)),0)","v":0}]
[null,null,null,null,null,null,null,null,null,null,null,null,null,null,null,null,null,null,null,null,null,null,null,null,null,null,null,null,null,null,null,null,null,null,null,"Elternteil:",{"$f":"Gesamtübersicht!H9&\" \"&Gesamtübersicht!Y9","v":" "},null,null,"Elternteil:",{"$f":"Gesamtübersicht!H12&\" \"&Gesamtübersicht!Y12","v":" "},null,null,null,null,"CheckBox3 aktiviert:",false]
[null,null,null,null,null,null,null,null,null,null,null,null,null,null,null,null,null,null,null,null,null,null,null,null,null,null,null,null,null,null,null,null,null,null,null,"Fr.",{"$f":"IFERROR(IF(AL43=\"i.O.\",AK29,ROUND(AL37+AL42,0)),0)","v":0},null,null,"Fr.",{"$f":"IFERROR(IF(AP43=\"i.O.\",AO29,ROUND(AP37+AP42,0)),0)","v":0}]
["Begründung:"]
[null,null,null,null,null,null,null,null,null,null,null,null,null,null,null,null,null,null,null,null,null,null,null,null,null,null,null,null,null,null,null,null,null,null,null,"- Bei Heirat, eingetragener Partnerschaft oder gefestigten Konkubinaten sind die Einnahmen der neuen Partnerin/des neuen Partners bei der Berechnung des erweiterten SKOS-Budgets zu berücksichtigen. Eine Unterstützungspflicht der Partnerin/des Partners gegenüber dem nicht leiblichen Kind besteht nur, falls das Kind adoptiert wurde. Wird das Kind nicht adoptiert, darf der errechnete Elternbeitrag maximal in der Höhe der Einnahmen des leiblichen Elternteils gefordert werden (vgl. Mappe \"Berechnung ohne Partner_in\"). Fehlen Einnahmen beim leiblichen Elternteil, ist der Mindestbetrag geschuldet. Bei der Abrechnung mit dem kantonalen Sozialamt ist die Mappe \"Berechnung ohne Partner_in\" mit einzureichen.",null,null,null,null,null,null,null,null,"- Bei Heirat, eingetragener Partnerschaft oder gefestigten Konkubinaten sind die Einnahmen der neuen Partnerin/des neuen Partners bei der Berechnung des erweiterten SKOS-Budgets zu berücksichtigen. Eine Unterstützungspflicht der Partnerin/des Partners gegenüber dem nicht leiblichen Kind besteht nur, falls das Kind adoptiert wurde. Wird das Kind nicht adoptiert, darf der errechnete Elternbeitrag maximal in der Höhe der Einnahmen des leiblichen Elternteils gefordert werden (vgl. Mappe \"Berechnung ohne Partner_in\"). Fehlen Einnahmen beim leiblichen Elternteil, ist der Mindestbetrag geschuldet. Bei der Abrechnung mit dem kantonalen Sozialamt ist die Mappe \"Berechnung ohne Partner_in\" mit einzureichen."]
[null,null,null,null,null,null,null,null,null,null,null,null,null,null,null,null,null,null,null,null,null,null,null,null,null,null,null,null,null,null,null,null,null,null,null,null,"Summe Einkommen Elternteil 1:",{"$f":"SUM('Berechnung ohne Partner_in'!AC13:AF13)-SUM('Berechnung ohne Partner_in'!AC10:AF10)","v":0},null,null,"Summe Einkommen Elternteil 2:",{"$f":"SUM('Berechnung ohne Partner_in'!BJ13:BM13)-SUM('Berechnung ohne Partner_in'!BJ10:BM10)","v":0}]
[null,null,null,null,null,null,null,null,null,null,null,null,null,null,null,null,null,null,null,null,null,null,null,null,null,null,null,null,null,null,null,null,null,null,null,null,"Total Vermögen Elternteil 1:",{"$f":"SUM('Berechnung ohne Partner_in'!AC19:AF19)","v":0},null,null,"Total Vermögen Elternteil 2:",{"$f":"SUM('Berechnung ohne Partner_in'!BJ19:BM19)","v":0}]
["Ort / Datum",null,null,null,null,null,null,null,null,null,null,null,null,null,null,null,null,"Unterschrift Sachbearbeiter/in",null,null,null,null,null,null,null,null,null,null,null,null,null,null,null,null,null,null,"Total Schulden Elternteil 1:",{"$f":"SUM('Berechnung ohne Partner_in'!AC23:AF23)","v":0},null,null,"Total Schulden Elternteil 2:",{"$f":"SUM('Berechnung ohne Partner_in'!BJ23:BM23)","v":0}]
[null,null,null,null,null,null,null,null,null,null,null,null,null,null,null,null,null,null,null,null,null,null,null,null,null,null,null,null,null,null,null,null,null,null,null,null,"Vermögensfreibetrag Elternteil 1:",{"$f":"SUM('Berechnung ohne Partner_in'!AC27:AF27)","v":0},null,null,"Vermögensfreibetrag Elternteil 2:",{"$f":"SUM('Berechnung ohne Partner_in'!BJ27:BM27)","v":0}]
[null,null,null,null,null,null,null,null,null,null,null,null,null,null,null,null,null,null,null,null,null,null,null,null,null,null,null,null,null,null,null,null,null,null,null,null,"Reinvermögen Elternteil 1:",{"$f":"SUM('Berechnung ohne Partner_in'!AC28:AF28)","v":0},null,null,"Reinvermögen Elternteil 2:",{"$f":"SUM('Berechnung ohne Partner_in'!BJ28:BM28)","v":0}]
[null,null,null,null,null,null,null,null,null,null,null,null,null,null,null,null,null,null,null,null,null,null,null,null,null,null,null,null,null,null,null,null,null,null,null,null,"Vermögensverzehr Elternteil 1:",{"$f":"IF(SUM('Berechnung ohne Partner_in'!AC10:AF10)<0,0,SUM('Berechnung ohne Partner_in'!AC10:AF10))","v":0},null,null,"Vermögensverzehr Elternteil 2:",{"$f":"IF(SUM('Berechnung ohne Partner_in'!BJ10:BM10)<0,0,SUM('Berechnung ohne Partner_in'!BJ10:BM10))","v":0}]
[null,null,null,null,null,null,null,null,null,null,null,null,null,null,null,null,null,null,null,null,null,null,null,null,null,null,null,null,null,null,null,null,null,null,null,null,"Prüfung Elternteil 1:",{"$f":"IF(AK29>(AL37+AL42),\"Zusatzschritt\",\"i.O.\")","v":"i.O."},null,null,"Prüfung Elternteil 2:",{"$f":"IF(AO29>(AP37+AP42),\"Zusatzschritt\",\"i.O.\")","v":"i.O."}]

{"sheet":"Erweitertes SKOS-Budget","index":1,"n_rows":57,"n_cols":68,"rows_kept":57,"cut":false,"hidden":false,"merged":[[52,61,52,64],[53,61,53,64],[54,61,54,64],[55,61,55,64],[56,61,56,64],[53,28,53,31],[54,28,54,31],[55,28,55,31],[56,28,56,31],[52,28,52,31],[28,34,28,56],[15,1,15,23],[15,34,15,56],[46,61,46,64],[32,61,32,64],[33,61,33,64],[34,61,34,64],[35,61,35,64],[24,61,24,64],[25,61,25,64],[26,61,26,64],[27,61,27,64],[28,61,28,64],[19,61,19,64],[20,61,20,64],[27,28,27,31],[19,28,19,31],[24,28,24,31],[47,61,47,64],[49,61,49,64],[51,37,51,47],[3,1,3,31],[3,34,3,64],[40,61,40,64],[41,61,41,64],[42,34,42,44],[42,61,42,64],[44,61,44,64],[36,61,36,64],[37,34,37,44],[37,61,37,64],[38,61,38,64],[39,61,39,64],[29,61,29,64],[21,61,21,64],[22,61,22,64],[23,61,23,64],[13,61,13,64],[14,61,14,64],[15,61,15,64],[16,61,16,64],[18,61,18,64],[9,61,9,64],[10,34,10,56],[10,61,10,64],[11,61,11,64],[12,61,12,64],[0,34,2,64],[5,61,5,64],[6,61,6,64],[7,61,7,64],[8,61,8,64],[13,28,13,31],[14,28,14,31],[10,1,10,23],[33,28,33,31],[49,28,49,31],[39,28,39,31],[29,28,29,31],[40,28,40,31],[35,28,35,31],[36,28,36,31],[34,28,34,31],[42,1,42,11],[37,1,37,11],[15,28,15,31],[28,28,28,31],[21,28,21,31],[22,28,22,31],[28,1,28,23],[51,4,51,14],[0,1,2,31],[46,28,46,31],[42,28,42,31],[47,28,47,31],[32,28,32,31],[38,28,38,31],[44,28,44,31],[41,28,41,31],[5,28,5,31],[18,28,18,31],[37,28,37,31],[20,28,20,31],[23,28,23,31],[6,28,6,31],[8,28,8,31],[9,28,9,31],[7,28,7,31],[26,28,26,31],[25,28,25,31],[16,28,16,31],[10,28,10,31],[11,28,11,31],[12,28,12,31]]}
[null,"Erweitertes SKOS-Budget",null,null,null,null,null,null,null,null,null,null,null,null,null,null,null,null,null,null,null,null,null,null,null,null,null,null,null,null,null,null,null,null,"Erweitertes SKOS-Budget"]
[]
[]
[null,{"$f":"Gesamtübersicht!H9&\" \"&Gesamtübersicht!Y9","v":" "},null,null,null,null,null,null,null,null,null,null,null,null,null,null,null,null,null,null,null,null,null,null,null,null,null,null,null,null,null,null,null,null,{"$f":"Gesamtübersicht!H12&\" \"&Gesamtübersicht!Y12","v":" "}]
[null,null,null,null,null,null,null,null,null,null,null,null,null,null,null,null,null,null,null,null,null,null,null,null,null,null,null,null,null,null,null,null,null,null,null,null,null,null,null,null,null,null,null,null,null,null,null,null,null,null,null,null,null,null,null,null,null,null,null,null,null,null,null,null,null,null,null,"Kommentare"]
[null,"Monatlich laufende Verpflichtungen (erweitertes SKOS-Budget)",null,null,null,null,null,null,null,null,null,null,null,null,null,null,null,null,null,null,null,null,null,null,null,null,null,null,"Betrag (Fr.)",null,null,null," ",null,"Monatlich laufende Verpflichtungen (erweitertes SKOS-Budget)",null,null,null,null,null,null,null,null,null,null,null,null,null,null,null,null,null,null,null,null,null,null,null,null,null,null,"Betrag (Fr.)"]
[null,"Grundbedarf für den Lebensunterhalt (nach ABzUG)",null,null,null,null,null,null,null,null,null,null,null,null,null,null,null,null,null,null,null,null,null,null,null,null,null,null,0,null,null,null,null,null,"Grundbedarf für den Lebensunterhalt (nach ABzUG)",null,null,null,null,null,null,null,null,null,null,null,null,null,null,null,null,null,null,null,null,null,null,null,null,null,null,0,null,null,null,null,null,"- Kinder in stationären Massnahmen werden nicht berücksichtigt."]
[null,"Wohnkosten (Miete oder Hypothekarzinsen)",null,null,null,null,null,null,null,null,null,null,null,null,null,null,null,null,null,null,null,null,null,null,null,null,null,null,0,null,null,null,null,null,"Wohnkosten (Miete oder Hypothekarzinsen)",null,null,null,null,null,null,null,null,null,null,null,null,null,null,null,null,null,null,null,null,null,null,null,null,null,null,0]
[null,"Medizinische Grundversorgung",null,null,null,null,null,null,null,null,null,null,null,null,null,null,null,null,null,null,null,null,null,null,null,null,null,null,0,null,null,null,null,null,"Medizinische Grundversorgung",null,null,null,null,null,null,null,null,null,null,null,null,null,null,null,null,null,null,null,null,null,null,null,null,null,null,0,null,null,null,null,null,"- Prämien sowie 1/12 der vertraglich festgehaltenen Franchise und des maximalen Jahresselbstbehalts der Unterstützungseinheit."]
[null,"Situationsbedingte Leistungen",null,null,null,null,null,null,null,null,null,null,null,null,null,null,null,null,null,null,null,null,null,null,null,null,null,null,0,null,null,null,null,null,"Situationsbedingte Leistungen",null,null,null,null,null,null,null,null,null,null,null,null,null,null,null,null,null,null,null,null,null,null,null,null,null,null,0,null,null,null,null,null,"- Ausgewiesene, bezifferbare situationsbedingte Leistungen. Dazu gehören u.a. Versicherungsprämien für Hausrat- und Privathaftpflichtversicherung (1/12 der Jahresprämie) oder Zahnbehandlungskosten (1/12). "]
[null,"Einkommensfreibeträge und Integrationszulagen",null,null,null,null,null,null,null,null,null,null,null,null,null,null,null,null,null,null,null,null,null,null,null,null,null,null,0,null,null,null,null,null,"Einkommensfreibeträge und Integrationszulagen",null,null,null,null,null,null,null,null,null,null,null,null,null,null,null,null,null,null,null,null,null,null,null,null,null,null,0,null,null,null,null,null,"- Beträge, die bei Unterstützung der pflichtigen Person(en) gewährt würden. Der Betrag darf Fr. 650.00 nicht überschreiten (Art. 7 ABzUG). "]
[null,"Unterhaltszahlungen (sofern geleistet)",null,null,null,null,null,null,null,null,null,null,null,null,null,null,null,null,null,null,null,null,null,null,null,null,null,null,0,null,null,null,null,null,"Unterhaltszahlungen (sofern geleistet)",null,null,null,null,null,null,null,null,null,null,null,null,null,null,null,null,null,null,null,null,null,null,null,null,null,null,0,null,null,null,null,null,"- Rechtlich geschuldete und tatsächlich geleistete Unterhaltszahlungen und Ausbildungskosten für Personen, die nicht im gleichen Haushalt wohnen."]
[null,"Steuern ",null,null,null,null,null,null,null,null,null,null,null,null,null,null,null,null,null,null,null,null,null,null,null,null,null,null,0,null,null,null,null,null,"Steuern ",null,null,null,null,null,null,null,null,null,null,null,null,null,null,null,null,null,null,null,null,null,null,null,null,null,null,0,null,null,null,null,null,"- 1/12 der laufenden jährlichen Steuern."]
[null,"Schuldentilgung",null,null,null,null,null,null,null,null,null,null,null,null,null,null,null,null,null,null,null,null,null,null,null,null,null,null,0,null,null,null,null,null,"Schuldentilgung",null,null,null,null,null,null,null,null,null,null,null,null,null,null,null,null,null,null,null,null,null,null,null,null,null,null,0,null,null,null,null,null,"- Schuld- und Kreditamortisationen, sofern sie zwecks Anschaffung notwendiger Güter oder zur Existenzsicherung begründet wurden."]
[null,"Pfändung",null,null,null,null,null,null,null,null,null,null,null,null,null,null,null,null,null,null,null,null,null,null,null,null,null,null,0,null,null,null,null,null,"Pfändung",null,null,null,null,null,null,null,null,null,null,null,null,null,null,null,null,null,null,null,null,null,null,null,null,null,null,0,null,null,null,null,null,"- Laufende Pfändung von Einkommen oder von Vermögenswerten, sofern keine bzw. bis eine Neuberechnung erwirkt werden kann. "]
[null,"Sonstiges (bitte bei Bedarf eintragen)",null,null,null,null,null,null,null,null,null,null,null,null,null,null,null,null,null,null,null,null,null,null,null,null,null,null,0,null,null,null,null,null,"Sonstiges (bitte bei Bedarf eintragen)",null,null,null,null,null,null,null,null,null,null,null,null,null,null,null,null,null,null,null,null,null,null,null,null,null,null,0]
[null,"Total monatlich laufende Verpflichtungen",null,null,null,null,null,null,null,null,null,null,null,null,null,null,null,null,null,null,null,null,null,null,null,null,null,null,{"$f":"SUM(AC7:AF16)","v":0},null,null,null,null,null,"Total monatlich laufende Verpflichtungen",null,null,null,null,null,null,null,null,null,null,null,null,null,null,null,null,null,null,null,null,null,null,null,null,null,null,{"$f":"SUM(BJ7:BM16)","v":0}]
[]
[null,"Monatliches Einkommen",null,null,null,null,null,null,null,null,null,null,null,null,null,null,null,null,null,null,null,null,null,null,null,null,null,null,"Betrag (Fr.)",null,null,null,null,null,"Monatliches Einkommen",null,null,null,null,null,null,null,null,null,null,null,null,null,null,null,null,null,null,null,null,null,null,null,null,null,null,"Betrag (Fr.)"]
[null,"Einnahmen Elternteil (Einkommen inkl. 13. Monatslohn, Renten, Taggelder etc.)",null,null,null,null,null,null,null,null,null,null,null,null,null,null,null,null,null,null,null,null,null,null,null,null,null,null,0,null,null,null,null,null,"Einnahmen Elternteil (Einkommen inkl. 13. Monatslohn, Renten, Taggelder etc.)",null,null,null,null,null,null,null,null,null,null,null,null,null,null,null,null,null,null,null,null,null,null,null,null,null,null,0,null,null,null,null,null,"- Alle Einnahmen Elternteil (Lohn, Renten, Zinserträge, Betreuungsunterhalt, Zinserträge, Liegenschaftserträge, Stipendien, usw.)"]
[null,"Alle Einnahmen Partner/in (Einkommen inkl. 13. Monatslohn, Renten, Zinsen etc.)",null,null,null,null,null,null,null,null,null,null,null,null,null,null,null,null,null,null,null,null,null,null,null,null,null,null,0,null,null,null,null,null,"Alle Einnahmen Partner/in (Einkommen inkl. 13. Monatslohn, Renten, Zinsen etc.)",null,null,null,null,null,null,null,null,null,null,null,null,null,null,null,null,null,null,null,null,null,null,null,null,null,null,0,null,null,null,null,null,"- Alle Einnahmen der Partner/in (Lohn, Renten, Zinserträge, Betreuungsunterhalt, Zinserträge, Liegenschaftserträge, Stipendien, usw.)"]
[null,"Einnahmen Kinder (Kinder-/Ausbildungszulagen, IV-Renten, Stipendien etc.)",null,null,null,null,null,null,null,null,null,null,null,null,null,null,null,null,null,null,null,null,null,null,null,null,null,null,0,null,null,null,null,null,"Einnahmen Kinder (Kinder-/Ausbildungszulagen, IV-Renten, Stipendien etc.)",null,null,null,null,null,null,null,null,null,null,null,null,null,null,null,null,null,null,null,null,null,null,null,null,null,null,0,null,null,null,null,null,"- inkl. Sozialversicherungsleistungen (bspw. IV, AHV, BVG, EO). Kinder in stationären Massnahmen werden nicht berücksichtigt."]
[null,"Barunterhalt Kinder",null,null,null,null,null,null,null,null,null,null,null,null,null,null,null,null,null,null,null,null,null,null,null,null,null,null,0,null,null,null,null,null,"Barunterhalt Kinder",null,null,null,null,null,null,null,null,null,null,null,null,null,null,null,null,null,null,null,null,null,null,null,null,null,null,0,null,null,null,null,null,"- Gemäss Unterhaltsvereinbarung/Gerichtsurteil. Kinder in stationären Massnahmen werden nicht berücksichtigt. Wurde der Unterhalt nicht zwischen Betreuungs- und Barunterhalt aufgeteilt, sind die Unterhaltsleistungen hier einzutragen."]
[null,"Betreuungsunterhalt Elternteil",null,null,null,null,null,null,null,null,null,null,null,null,null,null,null,null,null,null,null,null,null,null,null,null,null,null,0,null,null,null,null,null,"Betreuungsunterhalt Elternteil",null,null,null,null,null,null,null,null,null,null,null,null,null,null,null,null,null,null,null,null,null,null,null,null,null,null,0,null,null,null,null,null,"- Gemäss Unterhaltsvereinbarung/Gerichtsurteil. Der Betreuungsunterhalt von Kindern in stationären Massnahmen wird nicht berücksichtigt. "]
[null,"Zins- und Mieterträge Elternteil",null,null,null,null,null,null,null,null,null,null,null,null,null,null,null,null,null,null,null,null,null,null,null,null,null,null,0,null,null,null,null,null,"Zins- und Mieterträge Elternteil",null,null,null,null,null,null,null,null,null,null,null,null,null,null,null,null,null,null,null,null,null,null,null,null,null,null,0]
[null,"Vermögensverzehr gemäss untenstehender Berechnung (wird übertragen)",null,null,null,null,null,null,null,null,null,null,null,null,null,null,null,null,null,null,null,null,null,null,null,null,null,null,{"$f":"AC50","v":0},null,null,null,null,null,"Vermögensverzehr gemäss untenstehender Berechnung (wird übertragen)",null,null,null,null,null,null,null,null,null,null,null,null,null,null,null,null,null,null,null,null,null,null,null,null,null,null,{"$f":"BJ50","v":0},null,null,null,null,null,"- 10 % des Reinvermögens, sofern das Reinvermögen den Freibetrag übersteigt; auf einen Monat umgerechnet (Übertrag aus Berechnung unten)."]
[null,"Individuelle Prämienverbilligung (Alle)",null,null,null,null,null,null,null,null,null,null,null,null,null,null,null,null,null,null,null,null,null,null,null,null,null,null,0,null,null,null,null,null,"Individuelle Prämienverbilligung (Alle)",null,null,null,null,null,null,null,null,null,null,null,null,null,null,null,null,null,null,null,null,null,null,null,null,null,null,0,null,null,null,null,null,"- für die Unterstützungseinheit."]
[null,"Stipendien (Elternteil)",null,null,null,null,null,null,null,null,null,null,null,null,null,null,null,null,null,null,null,null,null,null,null,null,null,null,0,null,null,null,null,null,"Stipendien (Elternteil)",null,null,null,null,null,null,null,null,null,null,null,null,null,null,null,null,null,null,null,null,null,null,null,null,null,null,0,null,null,null,null,null,"- exkl. Stipendien für Kinder in stationären Kindesschutzmassnahmen."]
[null,"Sonstiges (bitte bei Bedarf eintragen, nur für den Elternteil)",null,null,null,null,null,null,null,null,null,null,null,null,null,null,null,null,null,null,null,null,null,null,null,null,null,null,0,null,null,null,null,null,"Sonstiges (bitte bei Bedarf eintragen, nur für den Elternteil)",null,null,null,null,null,null,null,null,null,null,null,null,null,null,null,null,null,null,null,null,null,null,null,null,null,null,0]
[null,"Total Einkommen",null,null,null,null,null,null,null,null,null,null,null,null,null,null,null,null,null,null,null,null,null,null,null,null,null,null,{"$f":"SUM(AC20:AF29)","v":0},null,null,null,null,null,"Total Einkommen",null,null,null,null,null,null,null,null,null,null,null,null,null,null,null,null,null,null,null,null,null,null,null,null,null,null,{"$f":"SUM(BJ20:BM29)","v":0}]
[]
[null,"Berechnung Vermögensverzehr",null,null,null,null,null,null,null,null,null,null,null,null,null,null,null,null,null,null,null,null,null,null,null,null,null,null,null,null,null,null,null,null,"Berechnung Vermögensverzehr",null,null,null,null,null,null,null,null,null,null,null,null,null,null,null,null,null,null,null,null,null,null,null,null,null,null,null,null,null,null,null,null,"- Kindsvermögen wird nicht berücksichtigt."]
[null,"Vermögen",null,null,null,null,null,null,null,null,null,null,null,null,null,null,null,null,null,null,null,null,null,null,null,null,null,null,"Betrag (Fr.)",null,null,null,null,null,"Vermögen",null,null,null,null,null,null,null,null,null,null,null,null,null,null,null,null,null,null,null,null,null,null,null,null,null,null,"Betrag (Fr.)"]
[null,"Vermögen Elternteil (ohne Liegenschaften/Grundstücke)",null,null,null,null,null,null,null,null,null,null,null,null,null,null,null,null,null,null,null,null,null,null,null,null,null,null,0,null,null,null,null,null,"Vermögen Elternteil (ohne Liegenschaften/Grundstücke)",null,null,null,null,null,null,null,null,null,null,null,null,null,null,null,null,null,null,null,null,null,null,null,null,null,null,0,null,null,null,null,null,"- gemäss letzter def. Steuerveranlagung. Zum Vermögen gehören bspw. Sparguthaben, Wertschriften, Barschaft, Motorfahrzeuge, Anteil an unverteilter Erbschaft usw."]
[null,"Liegenschaften und Grundstücke Elternteil (Steuerwert)",null,null,null,null,null,null,null,null,null,null,null,null,null,null,null,null,null,null,null,null,null,null,null,null,null,null,0,null,null,null,null,null,"Liegenschaften und Grundstücke Elternteil (Steuerwert)",null,null,null,null,null,null,null,null,null,null,null,null,null,null,null,null,null,null,null,null,null,null,null,null,null,null,0]
[null,"Vermögen Partner/in (ohne Liegenschaften/Grundstücke)",null,null,null,null,null,null,null,null,null,null,null,null,null,null,null,null,null,null,null,null,null,null,null,null,null,null,0,null,null,null,null,null,"Vermögen Partner/in (ohne Liegenschaften/Grundstücke)",null,null,null,null,null,null,null,null,null,null,null,null,null,null,null,null,null,null,null,null,null,null,null,null,null,null,0,null,null,null,null,null,"- gemäss letzter def. Steuerveranlagung. Zum Vermögen gehören bspw. Sparguthaben, Wertschriften, Barschaft, Motorfahrzeuge, Anteil an unverteilter Erbschaft usw."]
[null,"Liegenschaften und Grundstücke Partner/in (Steuerwert)",null,null,null,null,null,null,null,null,null,null,null,null,null,null,null,null,null,null,null,null,null,null,null,null,null,null,0,null,null,null,null,null,"Liegenschaften und Grundstücke Partner/in (Steuerwert)",null,null,null,null,null,null,null,null,null,null,null,null,null,null,null,null,null,null,null,null,null,null,null,null,null,null,0]
[null,"Total Vermögen",null,null,null,null,null,null,null,null,null,null,null,null,null,null,null,null,null,null,null,null,null,null,null,null,null,null,{"$f":"SUM(AC34:AF37)","v":0},null,null,null,null,null,"Total Vermögen",null,null,null,null,null,null,null,null,null,null,null,null,null,null,null,null,null,null,null,null,null,null,null,null,null,null,{"$f":"SUM(BJ34:BM37)","v":0}]
[]
[null,"Schulden",null,null,null,null,null,null,null,null,null,null,null,null,null,null,null,null,null,null,null,null,null,null,null,null,null,null,"Betrag (Fr.)",null,null,null,null,null,"Schulden",null,null,null,null,null,null,null,null,null,null,null,null,null,null,null,null,null,null,null,null,null,null,null,null,null,null,"Betrag (Fr.)"]
[null,"Schulden Elternteil",null,null,null,null,null,null,null,null,null,null,null,null,null,null,null,null,null,null,null,null,null,null,null,null,null,null,0,null,null,null,null,null,"Schulden Elternteil",null,null,null,null,null,null,null,null,null,null,null,null,null,null,null,null,null,null,null,null,null,null,null,null,null,null,0,null,null,null,null,null,"- Zu den Schulden gehören bspw. Hypothekarschulden, Darlehensschulden / Kreditkartenschulden usw."]
[null,"Schulden Parner/in",null,null,null,null,null,null,null,null,null,null,null,null,null,null,null,null,null,null,null,null,null,null,null,null,null,null,0,null,null,null,null,null,"Schulden Parner/in",null,null,null,null,null,null,null,null,null,null,null,null,null,null,null,null,null,null,null,null,null,null,null,null,null,null,0,null,null,null,null,null,"- Zu den Schulden gehören bspw. Hypothekarschulden, Darlehensschulden / Kreditkartenschulden usw."]
[null,"Total Schulden",null,null,null,null,null,null,null,null,null,null,null,null,null,null,null,null,null,null,null,null,null,null,null,null,null,null,{"$f":"SUM(AC41:AF42)","v":0},null,null,null,null,null,"Total Schulden",null,null,null,null,null,null,null,null,null,null,null,null,null,null,null,null,null,null,null,null,null,null,null,null,null,null,{"$f":"SUM(BJ41:BM42)","v":0}]
[]
[null,"Reinvermögen vor Abzug Vermögensfreibetrag",null,null,null,null,null,null,null,null,null,null,null,null,null,null,null,null,null,null,null,null,null,null,null,null,null,null,{"$f":"AC38-AC43","v":0},null,null,null,null,null,"Reinvermögen vor Abzug Vermögensfreibetrag",null,null,null,null,null,null,null,null,null,null,null,null,null,null,null,null,null,null,null,null,null,null,null,null,null,null,{"$f":"BJ38-BJ43","v":0}]
[]
[null,"Vermögensfreibetrag",null,null,null,null,null,null,null,null,null,null,null,null,null,null,null,null,null,null,null,null,null,null,null,null,null,null,0,null,null,null,null,null,"Vermögensfreibetrag",null,null,null,null,null,null,null,null,null,null,null,null,null,null,null,null,null,null,null,null,null,null,null,null,null,null,0,null,null,null,null,null,"- Einzelperson Fr. 4'000.00; Ehepaar/Konkubinat Fr. 8'000.00; für jedes Kind Fr. 2'000.00, jedoch maximal Fr. 10'000.00 für den gesamten Haushalt. Hausrat und persönliche Effekten sind nicht in die Berechnung des Vermögens einzubeziehen (Art. 5 ABzUG)."]
[null,"Reinvermögen ",null,null,null,null,null,null,null,null,null,null,null,null,null,null,null,null,null,null,null,null,null,null,null,null,null,null,{"$f":"(AC38-AC43-AC47)","v":0},null,null,null,null,null,"Reinvermögen ",null,null,null,null,null,null,null,null,null,null,null,null,null,null,null,null,null,null,null,null,null,null,null,null,null,null,{"$f":"(BJ38-BJ43-BJ47)","v":0}]
[]
[null,"Anrechenbarer Vermögensverzehr (pro Monat)",null,null,null,null,null,null,null,null,null,null,null,null,null,null,null,null,null,null,null,null,null,null,null,null,null,null,{"$f":"IF(ROUND(AC48/10/12,0)<0,0,ROUND(AC48/10/12,0))","v":0},null,null,{"$f":"AC48/10/12","v":0},null,null,"Anrechenbarer Vermögensverzehr (pro Monat)",null,null,null,null,null,null,null,null,null,null,null,null,null,null,null,null,null,null,null,null,null,null,null,null,null,null,{"$f":"IF(ROUND(BJ48/10/12,0)<0,0,ROUND(BJ48/10/12,0))","v":0},null,null,{"$f":"BJ48/10/12","v":0},null,null,"- 10 % des Reinvermögens, sofern das Reinvermögen den Freibetrag übersteigt; auf einen Monat umgerechnet."]
[]
[null,"Datum: ",null,null,{"$f":"NOW()","v":"2026-06-30T13:58:13.600"},null,null,null,null,null,null,null,null,null,null,null,null,null,null,null,null,null,null,null,null,null,null,null,null,null,null,null,null,null,"Datum: ",null,null,{"$f":"NOW()","v":"2026-06-30T13:58:13.600"}]
[null,null,null,null,null,null,null,null,null,null,null,null,null,null,null,null,null,null,null,null,null,null,null,null,null,null,null,null,"Betrag (Fr.)",null,null,null,null,null,null,null,null,null,null,null,null,null,null,null,null,null,null,null,null,null,null,null,null,null,null,null,null,null,null,null,null,"Betrag (Fr.)"]
[null,"Monatliches Einkommen",null,null,null,null,null,null,null,null,null,null,null,null,null,null,null,null,null,null,null,null,null,null,null,null,null,null,{"$f":"AC30","v":0},null,null,null,null,null,"Monatliches Einkommen",null,null,null,null,null,null,null,null,null,null,null,null,null,null,null,null,null,null,null,null,null,null,null,null,null,null,{"$f":"BJ30","v":0}]
[null,"Monatlich laufende Verpflichtungen",null,null,null,null,null,null,null,null,null,null,null,null,null,null,null,null,null,null,null,null,null,null,null,null,null,null,{"$f":"AC17","v":0},null,null,null,null,null,"Monatlich laufende Verpflichtungen",null,null,null,null,null,null,null,null,null,null,null,null,null,null,null,null,null,null,null,null,null,null,null,null,null,null,{"$f":"BJ17","v":0}]
[null,"Überschuss erweitertes SKOS-Budget",null,null,null,null,null,null,null,null,null,null,null,null,null,null,null,null,null,null,null,null,null,null,null,null,null,null,{"$f":"IF(AC54-AC55<0,0,AC54-AC55)","v":0},null,null,null,null,null,"Überschuss erweitertes SKOS-Budget",null,null,null,null,null,null,null,null,null,null,null,null,null,null,null,null,null,null,null,null,null,null,null,null,null,null,{"$f":"IF(BJ54-BJ55<0,0,BJ54-BJ55)","v":0}]
[null,"1/2 Überschuss erweitertes SKOS-Budget",null,null,null,null,null,null,null,null,null,null,null,null,null,null,null,null,null,null,null,null,null,null,null,null,null,null,{"$f":"IF(AC56/2<0,0,AC56/2)","v":0},null,null,null,null,null,"1/2 Überschuss erweitertes SKOS-Budget",null,null,null,null,null,null,null,null,null,null,null,null,null,null,null,null,null,null,null,null,null,null,null,null,null,null,{"$f":"IF(BJ56/2<0,0,BJ56/2)","v":0}]

{"sheet":"Berechnung ohne Partner_in","index":2,"n_rows":38,"n_cols":65,"rows_kept":38,"cut":false,"hidden":true,"merged":[[6,28,6,31],[6,61,6,64],[7,28,7,31],[7,61,7,64],[8,28,8,31],[8,61,8,64],[0,1,2,31],[0,34,2,64],[3,1,3,31],[3,34,3,64],[5,28,5,31],[5,61,5,64],[9,28,9,31],[9,61,9,64],[10,28,10,31],[10,61,10,64],[11,1,11,23],[11,28,11,31],[11,34,11,56],[11,61,11,64],[12,28,12,31],[12,61,12,64],[15,28,15,31],[15,61,15,64],[16,28,16,31],[16,61,16,64],[17,28,17,31],[17,61,17,64],[18,1,18,11],[18,28,18,31],[18,34,18,44],[18,61,18,64],[19,28,19,31],[19,61,19,64],[20,28,20,31],[20,61,20,64],[21,28,21,31],[21,61,21,64],[32,61,32,64],[32,28,32,31],[22,1,22,11],[22,28,22,31],[22,34,22,44],[22,61,22,64],[24,28,24,31],[24,61,24,64],[33,28,33,31],[33,61,33,64],[37,4,37,14],[37,37,37,47],[26,28,26,31],[26,61,26,64],[27,28,27,31],[27,61,27,64],[29,28,29,31],[29,61,29,64],[35,28,35,31],[35,61,35,64],[31,28,31,31],[31,61,31,64],[34,28,34,31],[34,61,34,64]]}
[null,"Berechnung Elternbeitrag ohne Einkommen und Vermögen Partner/in",null,null,null,null,null,null,null,null,null,null,null,null,null,null,null,null,null,null,null,null,null,null,null,null,null,null,null,null,null,null,null,null,"Berechnung Elternbeitrag ohne Einkommen und Vermögen Partner/in"]
[]
[]
[null,{"$f":"Gesamtübersicht!H9&\" \"&Gesamtübersicht!Y9","v":" "},null,null,null,null,null,null,null,null,null,null,null,null,null,null,null,null,null,null,null,null,null,null,null,null,null,null,null,null,null,null,null,null,{"$f":"Gesamtübersicht!H12&\" \"&Gesamtübersicht!Y12","v":" "}]
[]
[null,"Monatliches Einkommen Elternteil",null,null,null,null,null,null,null,null,null,null,null,null,null,null,null,null,null,null,null,null,null,null,null,null,null,null,"Betrag (Fr.)",null,null,null,null,null,"Monatliches Einkommen Elternteil",null,null,null,null,null,null,null,null,null,null,null,null,null,null,null,null,null,null,null,null,null,null,null,null,null,null,"Betrag (Fr.)"]
[null,"Einnahmen Elternteil (Einkommen inkl. 13. Monatslohn, Renten, Taggelder etc.)",null,null,null,null,null,null,null,null,null,null,null,null,null,null,null,null,null,null,null,null,null,null,null,null,null,null,{"$f":"'Erweitertes SKOS-Budget'!AC20:AF20","v":0},null,null,null,null,null,"Einnahmen Elternteil (Einkommen inkl. 13. Monatslohn, Renten, Taggelder etc.)",null,null,null,null,null,null,null,null,null,null,null,null,null,null,null,null,null,null,null,null,null,null,null,null,null,null,{"$f":"'Erweitertes SKOS-Budget'!BJ20:BM20","v":0}]
[null,"Betreuungsunterhalt Elternteil",null,null,null,null,null,null,null,null,null,null,null,null,null,null,null,null,null,null,null,null,null,null,null,null,null,null,{"$f":"'Erweitertes SKOS-Budget'!AC24:AF24","v":0},null,null,null,null,null,"Betreuungsunterhalt Elternteil",null,null,null,null,null,null,null,null,null,null,null,null,null,null,null,null,null,null,null,null,null,null,null,null,null,null,{"$f":"'Erweitertes SKOS-Budget'!BJ24:BM24","v":0}]
[null,"Zins- und Mieterträge Elternteil",null,null,null,null,null,null,null,null,null,null,null,null,null,null,null,null,null,null,null,null,null,null,null,null,null,null,{"$f":"'Erweitertes SKOS-Budget'!AC25:AF25","v":0},null,null,null,null,null,"Zins- und Mieterträge Elternteil",null,null,null,null,null,null,null,null,null,null,null,null,null,null,null,null,null,null,null,null,null,null,null,null,null,null,{"$f":"'Erweitertes SKOS-Budget'!BJ25:BM25","v":0}]
[null,"Vermögensverzehr gemäss untenstehender Berechnung (wird übertragen)",null,null,null,null,null,null,null,null,null,null,null,null,null,null,null,null,null,null,null,null,null,null,null,null,null,null,{"$f":"AC30","v":0},null,null,null,null,null,"Vermögensverzehr gemäss untenstehender Berechnung (wird übertragen)",null,null,null,null,null,null,null,null,null,null,null,null,null,null,null,null,null,null,null,null,null,null,null,null,null,null,{"$f":"BJ30","v":0}]
[null,"Stipendien (Elternteil)",null,null,null,null,null,null,null,null,null,null,null,null,null,null,null,null,null,null,null,null,null,null,null,null,null,null,{"$f":"'Erweitertes SKOS-Budget'!AC28:AF28","v":0},null,null,null,null,null,"Stipendien (Elternteil)",null,null,null,null,null,null,null,null,null,null,null,null,null,null,null,null,null,null,null,null,null,null,null,null,null,null,{"$f":"'Erweitertes SKOS-Budget'!BJ28:BM28","v":0}]
[null,{"$f":"'Erweitertes SKOS-Budget'!B29:X29","v":"Sonstiges (bitte bei Bedarf eintragen, nur für den Elternteil)"},null,null,null,null,null,null,null,null,null,null,null,null,null,null,null,null,null,null,null,null,null,null,null,null,null,null,{"$f":"'Erweitertes SKOS-Budget'!AC29:AF29","v":0},null,null,null,null,null,{"$f":"'Erweitertes SKOS-Budget'!AI29:BE29","v":"Sonstiges (bitte bei Bedarf eintragen, nur für den Elternteil)"},null,null,null,null,null,null,null,null,null,null,null,null,null,null,null,null,null,null,null,null,null,null,null,null,null,null,{"$f":"'Erweitertes SKOS-Budget'!BJ29:BM29","v":0}]
[null,"Total Einkommen Elternteil",null,null,null,null,null,null,null,null,null,null,null,null,null,null,null,null,null,null,null,null,null,null,null,null,null,null,{"$f":"SUM(AC7:AF12)","v":0},null,null,null,null,null,"Total Einkommen Elternteil",null,null,null,null,null,null,null,null,null,null,null,null,null,null,null,null,null,null,null,null,null,null,null,null,null,null,{"$f":"SUM(BJ7:BM12)","v":0}]
[]
[null,"Berechnung Vermögensverzehr",null,null,null,null,null,null,null,null,null,null,null,null,null,null,null,null,null,null,null,null,null,null,null,null,null,null,null,null,null,null,null,null,"Berechnung Vermögensverzehr"]
[null,"Vermögen",null,null,null,null,null,null,null,null,null,null,null,null,null,null,null,null,null,null,null,null,null,null,null,null,null,null,"Betrag (Fr.)",null,null,null,null,null,"Vermögen",null,null,null,null,null,null,null,null,null,null,null,null,null,null,null,null,null,null,null,null,null,null,null,null,null,null,"Betrag (Fr.)"]
[null,"Vermögen Elternteil (ohne Liegenschaften/Grundstücke)",null,null,null,null,null,null,null,null,null,null,null,null,null,null,null,null,null,null,null,null,null,null,null,null,null,null,{"$f":"'Erweitertes SKOS-Budget'!AC34:AF34","v":0},null,null,null,null,null,"Vermögen Elternteil (ohne Liegenschaften/Grundstücke)",null,null,null,null,null,null,null,null,null,null,null,null,null,null,null,null,null,null,null,null,null,null,null,null,null,null,{"$f":"'Erweitertes SKOS-Budget'!BJ34:BM34","v":0}]
[null,"Liegenschaften und Grundstücke Elternteil (Steuerwert)",null,null,null,null,null,null,null,null,null,null,null,null,null,null,null,null,null,null,null,null,null,null,null,null,null,null,{"$f":"'Erweitertes SKOS-Budget'!AC35:AF35","v":0},null,null,null,null,null,"Liegenschaften und Grundstücke Elternteil (Steuerwert)",null,null,null,null,null,null,null,null,null,null,null,null,null,null,null,null,null,null,null,null,null,null,null,null,null,null,{"$f":"'Erweitertes SKOS-Budget'!BJ35:BM35","v":0}]
[null,"Total Vermögen",null,null,null,null,null,null,null,null,null,null,null,null,null,null,null,null,null,null,null,null,null,null,null,null,null,null,{"$f":"SUM(AC17:AF18)","v":0},null,null,null,null,null,"Total Vermögen",null,null,null,null,null,null,null,null,null,null,null,null,null,null,null,null,null,null,null,null,null,null,null,null,null,null,{"$f":"SUM(BJ17:BM18)","v":0}]
[]
[null,"Schulden",null,null,null,null,null,null,null,null,null,null,null,null,null,null,null,null,null,null,null,null,null,null,null,null,null,null,"Betrag (Fr.)",null,null,null,null,null,"Schulden",null,null,null,null,null,null,null,null,null,null,null,null,null,null,null,null,null,null,null,null,null,null,null,null,null,null,"Betrag (Fr.)"]
[null,"Schulden Elternteil",null,null,null,null,null,null,null,null,null,null,null,null,null,null,null,null,null,null,null,null,null,null,null,null,null,null,{"$f":"'Erweitertes SKOS-Budget'!AC41:AF41","v":0},null,null,null,null,null,"Schulden Elternteil",null,null,null,null,null,null,null,null,null,null,null,null,null,null,null,null,null,null,null,null,null,null,null,null,null,null,{"$f":"'Erweitertes SKOS-Budget'!BJ41:BM41","v":0}]
[null,"Total Schulden",null,null,null,null,null,null,null,null,null,null,null,null,null,null,null,null,null,null,null,null,null,null,null,null,null,null,{"$f":"SUM(AC22:AF22)","v":0},null,null,null,null,null,"Total Schulden",null,null,null,null,null,null,null,null,null,null,null,null,null,null,null,null,null,null,null,null,null,null,null,null,null,null,{"$f":"SUM(BJ22:BM22)","v":0}]
[]
[null,null,null,null,null,null,null,null,null,null,null,null,null,null,null,null,null,null,null,null,null,null,null,null,null,null,null,null,{"$f":"AC19-AC23","v":0},null,null,null,null,null,null,null,null,null,null,null,null,null,null,null,null,null,null,null,null,null,null,null,null,null,null,null,null,null,null,null,null,{"$f":"BJ19-BJ23","v":0}]
[]
[null,null,null,null,null,null,null,null,null,null,null,null,null,null,null,null,null,null,null,null,null,null,null,null,null,null,null,null,{"$f":"'Erweitertes SKOS-Budget'!AC47:AF47","v":0},null,null,null,null,null,null,null,null,null,null,null,null,null,null,null,null,null,null,null,null,null,null,null,null,null,null,null,null,null,null,null,null,{"$f":"'Erweitertes SKOS-Budget'!BJ47:BM47","v":0}]
[null,"Reinvermögen ",null,null,null,null,null,null,null,null,null,null,null,null,null,null,null,null,null,null,null,null,null,null,null,null,null,null,{"$f":"(AC19-AC23-AC27)","v":0},null,null,null,null,null,"Reinvermögen ",null,null,null,null,null,null,null,null,null,null,null,null,null,null,null,null,null,null,null,null,null,null,null,null,null,null,{"$f":"(BJ19-BJ23-BJ27)","v":0}]
[]
[null,"Anrechenbarer Vermögensverzehr (pro Monat)",null,null,null,null,null,null,null,null,null,null,null,null,null,null,null,null,null,null,null,null,null,null,null,null,null,null,{"$f":"IF(ROUND(AC28/10/12,0)<0,0,ROUND(AC28/10/12,0))","v":0},null,null,{"$f":"AC28/10/12","v":0},null,null,"Anrechenbarer Vermögensverzehr (pro Monat)",null,null,null,null,null,null,null,null,null,null,null,null,null,null,null,null,null,null,null,null,null,null,null,null,null,null,{"$f":"IF(ROUND(BJ28/10/12,0)<0,0,ROUND(BJ28/10/12,0))","v":0},null,null,{"$f":"BJ28/10/12","v":0}]
[]
[null,null,null,null,null,null,null,null,null,null,null,null,null,null,null,null,null,null,null,null,null,null,null,null,null,null,null,null,"Betrag (Fr.)",null,null,null,null,null,null,null,null,null,null,null,null,null,null,null,null,null,null,null,null,null,null,null,null,null,null,null,null,null,null,null,null,"Betrag (Fr.)"]
[null,"Überschuss erweitertes SKOS-Budget",null,null,null,null,null,null,null,null,null,null,null,null,null,null,null,null,null,null,null,null,null,null,null,null,null,null,{"$f":"'Erweitertes SKOS-Budget'!AC56:AF56","v":0},null,null,null,null,null,"Überschuss erweitertes SKOS-Budget",null,null,null,null,null,null,null,null,null,null,null,null,null,null,null,null,null,null,null,null,null,null,null,null,null,null,{"$f":"'Erweitertes SKOS-Budget'!BJ56:BM56","v":0}]
[null,"1/2 Überschuss erweitertes SKOS-Budget",null,null,null,null,null,null,null,null,null,null,null,null,null,null,null,null,null,null,null,null,null,null,null,null,null,null,{"$f":"'Erweitertes SKOS-Budget'!AC57:AF57","v":0},null,null,null,null,null,"1/2 Überschuss erweitertes SKOS-Budget",null,null,null,null,null,null,null,null,null,null,null,null,null,null,null,null,null,null,null,null,null,null,null,null,null,null,{"$f":"'Erweitertes SKOS-Budget'!BJ57:BM57","v":0}]
[null,"Monatliches Einkommen Elternteil",null,null,null,null,null,null,null,null,null,null,null,null,null,null,null,null,null,null,null,null,null,null,null,null,null,null,{"$f":"AC13","v":0},null,null,null,null,null,"Monatliches Einkommen Elternteil",null,null,null,null,null,null,null,null,null,null,null,null,null,null,null,null,null,null,null,null,null,null,null,null,null,null,{"$f":"BJ13","v":0}]
[null,"Empfehlung Elternbeitrag: ",null,null,null,null,null,null,null,null,null,{"$f":"B4","v":" "},null,null,null,null,null,null,null,null,null,null,null,null,null,null,null,null,{"$f":"IF(AND(Gesamtübersicht!AS17=TRUE,Gesamtübersicht!AT17=TRUE),Gesamtübersicht!AT32,Gesamtübersicht!AK34)","v":0},null,null,null,null,null,"Empfehlung Elternbeitrag:",null,null,null,null,null,null,null,null,null,{"$f":"AI4","v":" "},null,null,null,null,null,null,null,null,null,null,null,null,null,null,null,null,{"$f":"Gesamtübersicht!AO34","v":0}]
[]
[null,"Datum: ",null,null,{"$f":"NOW()","v":"2026-06-30T13:58:13.590"},null,null,null,null,null,null,null,null,null,null,null,null,null,null,null,null,null,null,null,null,null,null,null,null,null,null,null,null,null,"Datum: ",null,null,{"$f":"NOW()","v":"2026-06-30T13:58:13.590"}]